[Event "*** Titled Tuesday Blitz"]
[Site "Chess.com"]
[Date "2020.04.21"]
[Round "4"]
[White "jsdbv18"]
[Black "Izoria123"]
[Result "1/2-1/2"]
[WhiteElo "2554"]
[BlackElo "2782"]
[TimeControl "180+1"]
[EndTime "10:41:15 PDT"]
[Termination "Game drawn by repetition"]

1. e4 {[%clk 0:03:00.9]} 1... Nc6 {[%clk 0:02:58.9]} 2. Nf3 {[%clk 0:03:00.4]}
2... d6 {[%clk 0:02:59.1]} 3. d4 {[%clk 0:03:00.2]} 3... Nf6 {[%clk 0:02:59.7]}
4. Nc3 {[%clk 0:03:00.5]} 4... g6 {[%clk 0:03:00.4]} 5. Be2 {[%clk 0:03:00.4]}
5... Bg7 {[%clk 0:03:00.7]} 6. O-O {[%clk 0:03:01]} 6... O-O {[%clk 0:03:01.3]}
7. d5 {[%clk 0:03:01.5]} 7... Nb8 {[%clk 0:03:01.1]} 8. a4 {[%clk 0:03:01.1]}
8... e5 {[%clk 0:02:59]} 9. dxe6 {[%clk 0:02:57.2]} 9... Bxe6 {[%clk 0:02:58.2]}
10. Nd4 {[%clk 0:02:57.5]} 10... Bd7 {[%clk 0:02:58.4]} 11. f4 {[%clk
0:02:55.9]} 11... Nc6 {[%clk 0:02:56.7]} 12. Be3 {[%clk 0:02:56.1]} 12... Re8
{[%clk 0:02:52.1]} 13. Bf3 {[%clk 0:02:55.3]} 13... Nb4 {[%clk 0:02:27.8]} 14.
Re1 {[%clk 0:02:52.9]} 14... a6 {[%clk 0:02:21.4]} 15. Qd2 {[%clk 0:02:48.5]}
15... c5 {[%clk 0:02:19.1]} 16. Nde2 {[%clk 0:02:44]} 16... Bc6 {[%clk
0:02:18.5]} 17. Ng3 {[%clk 0:02:42.9]} 17... Qc7 {[%clk 0:02:13.8]} 18. Nd5
{[%clk 0:02:31.7]} 18... Nbxd5 {[%clk 0:01:56.4]} 19. exd5 {[%clk 0:02:32.6]}
19... Bd7 {[%clk 0:01:56.7]} 20. c3 {[%clk 0:02:24]} 20... Ng4 {[%clk
0:01:43.5]} 21. Bxg4 {[%clk 0:02:21.8]} 21... Bxg4 {[%clk 0:01:44.4]} 22. a5
{[%clk 0:02:18.7]} 22... h5 {[%clk 0:01:33.3]} 23. h3 {[%clk 0:02:17.8]} 23...
Bd7 {[%clk 0:01:32.6]} 24. Nf1 {[%clk 0:02:09.9]} 24... Re4 {[%clk 0:01:22.5]}
25. Ng3 {[%clk 0:02:09.1]} 25... Re7 {[%clk 0:01:20.2]} 26. Bf2 {[%clk 0:02:05]}
26... Rxe1+ {[%clk 0:01:19.6]} 27. Bxe1 {[%clk 0:02:02.2]} 27... Re8 {[%clk
0:01:11.4]} 28. Bf2 {[%clk 0:02:01.9]} 28... Bb5 {[%clk 0:01:10.2]} 29. h4
{[%clk 0:01:57.6]} 29... Qd8 {[%clk 0:01:05.6]} 30. Re1 {[%clk 0:01:51.9]} 30...
Qxa5 {[%clk 0:01:02.7]} 31. Rxe8+ {[%clk 0:01:49.6]} 31... Bxe8 {[%clk
0:01:03.6]} 32. f5 {[%clk 0:01:48.8]} 32... Qd8 {[%clk 0:01:00.7]} 33. fxg6
{[%clk 0:01:46.6]} 33... fxg6 {[%clk 0:01:01.6]} 34. Ne4 {[%clk 0:01:46.2]}
34... Qe7 {[%clk 0:00:59.2]} 35. Ng5 {[%clk 0:01:45.6]} 35... Bd7 {[%clk
0:00:59.3]} 36. b4 {[%clk 0:01:35.5]} 36... cxb4 {[%clk 0:00:52.2]} 37. cxb4
{[%clk 0:01:36.4]} 37... Bf5 {[%clk 0:00:51.4]} 38. Bb6 {[%clk 0:01:11.5]} 38...
Qe5 {[%clk 0:00:48.1]} 39. Nf3 {[%clk 0:01:05.2]} 39... Qe4 {[%clk 0:00:40.4]}
40. Bc7 {[%clk 0:01:03.5]} 40... Bg4 {[%clk 0:00:33.9]} 41. Ng5 {[%clk
0:00:48.3]} 41... Qd4+ {[%clk 0:00:33]} 42. Qxd4 {[%clk 0:00:48.8]} 42... Bxd4+
{[%clk 0:00:33.5]} 43. Kf1 {[%clk 0:00:48.7]} 43... Be5 {[%clk 0:00:32.2]} 44.
Ne4 {[%clk 0:00:45.7]} 44... Bf5 {[%clk 0:00:19.9]} 45. Nxd6 {[%clk 0:00:45.6]}
45... Bd3+ {[%clk 0:00:18.8]} 46. Kf2 {[%clk 0:00:43.3]} 46... Bd4+ {[%clk
0:00:18.7]} 47. Kf3 {[%clk 0:00:42.6]} 47... Bc3 {[%clk 0:00:18.3]} 48. Nxb7
{[%clk 0:00:40.1]} 48... Bxb4 {[%clk 0:00:17.6]} 49. d6 {[%clk 0:00:39.7]} 49...
Bb5 {[%clk 0:00:18.1]} 50. Ke4 {[%clk 0:00:34.9]} 50... Bc6+ {[%clk 0:00:18.3]}
51. Ke5 {[%clk 0:00:35.3]} 51... Kf7 {[%clk 0:00:16.4]} 52. Na5 {[%clk
0:00:33.8]} 52... Bc3+ {[%clk 0:00:15.8]} 53. Kf4 {[%clk 0:00:32.8]} 53... Bxa5
{[%clk 0:00:11.7]} 54. Bxa5 {[%clk 0:00:32.5]} 54... Ke6 {[%clk 0:00:12.6]} 55.
Bb4 {[%clk 0:00:31.9]} 55... Bxg2 {[%clk 0:00:11.3]} 56. Kg5 {[%clk 0:00:32.3]}
56... Be4 {[%clk 0:00:11.2]} 57. Kf4 {[%clk 0:00:32.8]} 57... Bf5 {[%clk
0:00:11.5]} 58. Ke3 {[%clk 0:00:30.6]} 58... Kd5 {[%clk 0:00:11.9]} 59. Kf4
{[%clk 0:00:29]} 59... Kc4 {[%clk 0:00:11.8]} 60. Ba5 {[%clk 0:00:29]} 60... Kc5
{[%clk 0:00:11.9]} 61. Ke5 {[%clk 0:00:27.6]} 61... Kc6 {[%clk 0:00:11.3]} 62.
Bd2 {[%clk 0:00:23.4]} 62... Kb6 {[%clk 0:00:11.4]} 63. Kf6 {[%clk 0:00:23.3]}
63... Kc6 {[%clk 0:00:06.9]} 64. Ke7 {[%clk 0:00:20.9]} 64... Bh3 {[%clk
0:00:06.4]} 65. Bc3 {[%clk 0:00:20.4]} 65... Bg4 {[%clk 0:00:06.4]} 66. Bd4
{[%clk 0:00:20.6]} 66... Bf5 {[%clk 0:00:06.5]} 67. Bc3 {[%clk 0:00:21]} 67...
Bg4 {[%clk 0:00:06.7]} 68. Bd2 {[%clk 0:00:21.6]} 68... Bh3 {[%clk 0:00:05]} 69.
Bc3 {[%clk 0:00:22]} 69... Bf5 {[%clk 0:00:04.8]} 70. Ba5 {[%clk 0:00:22.5]}
70... Kb5 {[%clk 0:00:04.4]} 71. Be1 {[%clk 0:00:22.8]} 71... Kc6 {[%clk
0:00:04.3]} 72. Bc3 {[%clk 0:00:23]} 72... Bg4 {[%clk 0:00:02.7]} 1/2-1/2

[Event "*** Titled Tuesday Blitz"]
[Site "Chess.com"]
[Date "2020.04.21"]
[Round "4"]
[White "Diego_FloresQ"]
[Black "annamaja"]
[Result "0-1"]
[WhiteElo "2416"]
[BlackElo "2227"]
[TimeControl "180+1"]
[EndTime "10:41:15 PDT"]
[Termination "annamaja won by checkmate"]

1. e4 {[%clk 0:02:29.2]} 1... c6 {[%clk 0:02:59.4]} 2. d4 {[%clk 0:02:27.8]}
2... d5 {[%clk 0:02:59.3]} 3. Nc3 {[%clk 0:02:26.9]} 3... dxe4 {[%clk
0:02:58.3]} 4. Nxe4 {[%clk 0:02:27.8]} 4... Bf5 {[%clk 0:02:58.5]} 5. Ng3 {[%clk
0:02:25.3]} 5... Bg6 {[%clk 0:02:58.4]} 6. h4 {[%clk 0:02:26.2]} 6... h6 {[%clk
0:02:58.3]} 7. Nf3 {[%clk 0:02:26.7]} 7... Nd7 {[%clk 0:02:58.1]} 8. Bd3 {[%clk
0:02:24.6]} 8... Bxd3 {[%clk 0:02:55.7]} 9. Qxd3 {[%clk 0:02:25.5]} 9... e6
{[%clk 0:02:56]} 10. Bd2 {[%clk 0:02:21.9]} 10... Ngf6 {[%clk 0:02:55.6]} 11.
Bc1 {[%clk 0:02:21.9]} 11... Bb4+ {[%clk 0:02:47.8]} 12. c3 {[%clk 0:02:19.8]}
12... Bd6 {[%clk 0:02:45.4]} 13. Bd2 {[%clk 0:02:19.8]} 13... Qb6 {[%clk
0:02:40.4]} 14. O-O-O {[%clk 0:02:19.6]} 14... O-O-O {[%clk 0:02:40.2]} 15. Ne4
{[%clk 0:02:19.8]} 15... Nxe4 {[%clk 0:02:39.1]} 16. Qxe4 {[%clk 0:02:20.7]}
16... Nf6 {[%clk 0:02:39.6]} 17. Qe2 {[%clk 0:02:21.2]} 17... c5 {[%clk
0:02:38.4]} 18. Be3 {[%clk 0:02:19.8]} 18... Qa5 {[%clk 0:02:23.3]} 19. Kb1
{[%clk 0:02:18.2]} 19... Nd5 {[%clk 0:02:23]} 20. dxc5 {[%clk 0:02:13.5]} 20...
Bxc5 {[%clk 0:02:20.1]} 21. Qc4 {[%clk 0:01:57]} 21... Nxe3 {[%clk 0:02:07.4]}
22. fxe3 {[%clk 0:01:56.9]} 22... Qc7 {[%clk 0:02:07.4]} 23. e4 {[%clk
0:01:53.8]} 23... Bb6 {[%clk 0:01:54.3]} 24. Qxc7+ {[%clk 0:01:45.6]} 24... Bxc7
{[%clk 0:01:55.2]} 25. h5 {[%clk 0:01:46]} 25... Rxd1+ {[%clk 0:01:51.7]} 26.
Rxd1 {[%clk 0:01:43.4]} 26... Rd8 {[%clk 0:01:52]} 27. Rxd8+ {[%clk 0:01:43.1]}
27... Kxd8 {[%clk 0:01:52.9]} 28. Kc2 {[%clk 0:01:41.9]} 28... Ke7 {[%clk
0:01:52]} 29. e5 {[%clk 0:01:39.7]} 29... f6 {[%clk 0:01:41.8]} 30. exf6+ {[%clk
0:01:39.1]} 30... Kxf6 {[%clk 0:01:41.6]} 31. g4 {[%clk 0:01:37.1]} 31... Bf4
{[%clk 0:01:21.4]} 32. Kd3 {[%clk 0:01:32.3]} 32... Bc1 {[%clk 0:01:14.9]} 33.
b3 {[%clk 0:01:30.5]} 33... Ke7 {[%clk 0:01:00.5]} 34. Ke4 {[%clk 0:01:26.7]}
34... Kd6 {[%clk 0:00:57.8]} 35. c4 {[%clk 0:01:21.4]} 35... Bb2 {[%clk
0:00:49.2]} 36. Ne1 {[%clk 0:01:19.1]} 36... Ke7 {[%clk 0:00:32.7]} 37. Nd3
{[%clk 0:01:18.5]} 37... Bc3 {[%clk 0:00:32.5]} 38. Ne5 {[%clk 0:00:44.7]} 38...
Kf6 {[%clk 0:00:13.4]} 39. Nf3 {[%clk 0:00:40.2]} 39... b6 {[%clk 0:00:10.3]}
40. Kf4 {[%clk 0:00:30.8]} 40... Ke7 {[%clk 0:00:06.4]} 41. Ng1 {[%clk
0:00:24.4]} 41... Kd6 {[%clk 0:00:05.8]} 42. Ne2 {[%clk 0:00:23.5]} 42... Bd2+
{[%clk 0:00:05.5]} 43. Ke4 {[%clk 0:00:23]} 43... Kc5 {[%clk 0:00:04.8]} 44. Nd4
{[%clk 0:00:23.6]} 44... Kb4 {[%clk 0:00:03.9]} 45. Nxe6 {[%clk 0:00:23.8]}
45... Bc3 {[%clk 0:00:03.8]} 46. Kd3 {[%clk 0:00:20.6]} 46... Bf6 {[%clk
0:00:03.3]} 47. Kc2 {[%clk 0:00:18.1]} 47... Ka3 {[%clk 0:00:03.5]} 48. Kb1
{[%clk 0:00:18.7]} 48... a5 {[%clk 0:00:03.4]} 49. Nc7 {[%clk 0:00:18.4]} 49...
a4 {[%clk 0:00:03.3]} 50. bxa4 {[%clk 0:00:17.1]} 50... Kxa4 {[%clk 0:00:03]}
51. Nd5 {[%clk 0:00:15.7]} 51... Bd4 {[%clk 0:00:02.5]} 52. Kc2 {[%clk
0:00:14.4]} 52... Ka3 {[%clk 0:00:02.9]} 53. Kd3 {[%clk 0:00:14.6]} 53... Bc5
{[%clk 0:00:02.4]} 54. Nc3 {[%clk 0:00:15]} 54... Kb2 {[%clk 0:00:02.5]} 55.
Na4+ {[%clk 0:00:14.3]} 55... Kxa2 {[%clk 0:00:02.7]} 56. Nxc5 {[%clk 0:00:15]}
56... bxc5 {[%clk 0:00:03.6]} 57. Ke4 {[%clk 0:00:15.7]} 57... Kb3 {[%clk
0:00:04.3]} 58. Kd5 {[%clk 0:00:16.6]} 58... Kb4 {[%clk 0:00:04.9]} 59. Ke5
{[%clk 0:00:12.6]} 59... Kxc4 {[%clk 0:00:05.1]} 60. Kf5 {[%clk 0:00:13.5]}
60... Kd4 {[%clk 0:00:05]} 61. Kg6 {[%clk 0:00:14.4]} 61... c4 {[%clk
0:00:05.4]} 62. Kxg7 {[%clk 0:00:15.3]} 62... c3 {[%clk 0:00:06.1]} 63. Kxh6
{[%clk 0:00:16.2]} 63... c2 {[%clk 0:00:07]} 64. g5 {[%clk 0:00:17.1]} 64...
c1=Q {[%clk 0:00:07.9]} 65. Kg6 {[%clk 0:00:16.1]} 65... Qc6+ {[%clk 0:00:07.8]}
66. Kh7 {[%clk 0:00:15.2]} 66... Ke5 {[%clk 0:00:08.2]} 67. g6 {[%clk
0:00:15.6]} 67... Qe4 {[%clk 0:00:07.5]} 68. h6 {[%clk 0:00:15.5]} 68... Kf6
{[%clk 0:00:07.7]} 69. Kh8 {[%clk 0:00:15.8]} 69... Kxg6 {[%clk 0:00:07.3]} 70.
h7 {[%clk 0:00:16.7]} 70... Qe8# {[%clk 0:00:07.9]} 0-1

[Event "*** Titled Tuesday Blitz"]
[Site "Chess.com"]
[Date "2020.04.21"]
[Round "4"]
[White "Anaj14"]
[Black "IMRosen"]
[Result "0-1"]
[WhiteElo "2237"]
[BlackElo "2473"]
[TimeControl "180+1"]
[EndTime "10:41:17 PDT"]
[Termination "IMRosen won by resignation"]

1. d4 {[%clk 0:03:00.9]} 1... d5 {[%clk 0:02:59.7]} 2. Nf3 {[%clk 0:03:00.3]}
2... Nf6 {[%clk 0:02:59.7]} 3. Bf4 {[%clk 0:03:00.4]} 3... c5 {[%clk 0:02:59.4]}
4. c3 {[%clk 0:03:00.5]} 4... Nc6 {[%clk 0:02:59.4]} 5. e3 {[%clk 0:03:00.8]}
5... Qb6 {[%clk 0:02:59.4]} 6. Qb3 {[%clk 0:02:58.9]} 6... c4 {[%clk 0:02:59.9]}
7. Qxb6 {[%clk 0:02:56.3]} 7... axb6 {[%clk 0:03:00.8]} 8. Nbd2 {[%clk
0:02:53.9]} 8... Bf5 {[%clk 0:03:00.3]} 9. a3 {[%clk 0:02:52.4]} 9... h6 {[%clk
0:02:59.1]} 10. h3 {[%clk 0:02:51.8]} 10... e6 {[%clk 0:02:59.5]} 11. Be2 {[%clk
0:02:50.6]} 11... b5 {[%clk 0:02:59]} 12. Rc1 {[%clk 0:02:50.7]} 12... Nd7
{[%clk 0:02:57.4]} 13. Bd1 {[%clk 0:02:49.2]} 13... Nb6 {[%clk 0:02:54.5]} 14.
O-O {[%clk 0:02:46.2]} 14... Na4 {[%clk 0:02:42.3]} 15. Bxa4 {[%clk 0:02:34.1]}
15... bxa4 {[%clk 0:02:43.2]} 16. Rfe1 {[%clk 0:02:32.3]} 16... Be7 {[%clk
0:01:35.4]} 17. e4 {[%clk 0:02:31.1]} 17... dxe4 {[%clk 0:01:35.9]} 18. Nxe4
{[%clk 0:02:30.6]} 18... O-O {[%clk 0:01:32.3]} 19. Nd6 {[%clk 0:02:24.3]} 19...
Bxd6 {[%clk 0:01:32.6]} 20. Bxd6 {[%clk 0:02:24.1]} 20... Rfd8 {[%clk
0:01:32.9]} 21. Bc5 {[%clk 0:02:18.3]} 21... b6 {[%clk 0:01:07.6]} 22. Bb4
{[%clk 0:02:15.9]} 22... Nxb4 {[%clk 0:00:56.9]} 23. cxb4 {[%clk 0:02:08]} 23...
b5 {[%clk 0:00:54.3]} 24. Red1 {[%clk 0:01:58.6]} 24... Rd5 {[%clk 0:00:53.3]}
25. Ne5 {[%clk 0:01:40.5]} 25... Rad8 {[%clk 0:00:47.2]} 26. Nc6 {[%clk
0:01:40.5]} 26... R8d7 {[%clk 0:00:46.6]} 27. g4 {[%clk 0:01:35.2]} 27... Be4
{[%clk 0:00:26.1]} 28. f4 {[%clk 0:01:28.4]} 28... Kf8 {[%clk 0:00:15.7]} 29.
Kf2 {[%clk 0:01:27.2]} 29... R7d6 {[%clk 0:00:13.1]} 30. Na7 {[%clk 0:01:05.1]}
30... Ra6 {[%clk 0:00:09.8]} 31. Ke3 {[%clk 0:01:02.7]} 31... Bg2 {[%clk
0:00:08.1]} 32. Nxb5 {[%clk 0:00:51.3]} 32... Rxb5 {[%clk 0:00:08]} 33. Rxc4
{[%clk 0:00:51]} 33... Rb7 {[%clk 0:00:04.2]} 34. h4 {[%clk 0:00:50.5]} 34...
Bd5 {[%clk 0:00:04]} 35. Rc5 {[%clk 0:00:47.1]} 35... Ke7 {[%clk 0:00:04.7]} 36.
f5 {[%clk 0:00:46.2]} 36... Rd6 {[%clk 0:00:05.1]} 37. fxe6 {[%clk 0:00:37.8]}
37... Rxe6+ {[%clk 0:00:05.8]} 38. Kf4 {[%clk 0:00:37]} 38... Rd7 {[%clk
0:00:05.2]} 39. g5 {[%clk 0:00:35.9]} 39... Re4+ {[%clk 0:00:05]} 40. Kg3 {[%clk
0:00:35.8]} 40... Re3+ {[%clk 0:00:03.6]} 41. Kf2 {[%clk 0:00:31]} 41... Rf3+
{[%clk 0:00:03.9]} 42. Ke2 {[%clk 0:00:31]} 42... Rf4 {[%clk 0:00:04.3]} 43.
gxh6 {[%clk 0:00:30.8]} 43... gxh6 {[%clk 0:00:04.5]} 44. Re1 {[%clk 0:00:27.4]}
44... Re4+ {[%clk 0:00:04.7]} 45. Kd2 {[%clk 0:00:27.3]} 45... Rxe1 {[%clk
0:00:04.9]} 46. Kxe1 {[%clk 0:00:27.6]} 46... Kd6 {[%clk 0:00:05.5]} 47. Kd2
{[%clk 0:00:27]} 47... Re7 {[%clk 0:00:04.8]} 48. Kd3 {[%clk 0:00:25.8]} 48...
Re4 {[%clk 0:00:04.5]} 49. Ra5 {[%clk 0:00:23.1]} 49... Rxh4 {[%clk 0:00:04.7]}
50. Rxa4 {[%clk 0:00:22.3]} 50... Rh3+ {[%clk 0:00:04.8]} 51. Kd2 {[%clk
0:00:22.2]} 51... h5 {[%clk 0:00:05]} 52. Ra6+ {[%clk 0:00:21.5]} 52... Kd7
{[%clk 0:00:03.1]} 53. Rh6 {[%clk 0:00:22.4]} 53... Rh2+ {[%clk 0:00:02.3]} 54.
Kc3 {[%clk 0:00:22.1]} 54... Rh3+ {[%clk 0:00:02.2]} 55. Kc2 {[%clk 0:00:21.9]}
55... h4 {[%clk 0:00:03.1]} 56. b5 {[%clk 0:00:20.5]} 56... Rh2+ {[%clk
0:00:02.6]} 57. Kc3 {[%clk 0:00:20.3]} 57... Rh3+ {[%clk 0:00:03.3]} 58. Kc2
{[%clk 0:00:20.4]} 58... Rh2+ {[%clk 0:00:03.6]} 59. Kc1 {[%clk 0:00:19.7]}
59... h3 {[%clk 0:00:04.5]} 60. b6 {[%clk 0:00:19.1]} 60... Rh1+ {[%clk
0:00:04.8]} 61. Kd2 {[%clk 0:00:19.3]} 61... h2 {[%clk 0:00:05.2]} 62. b4 {[%clk
0:00:18]} 62... Kc8 {[%clk 0:00:05.3]} 63. a4 {[%clk 0:00:17.7]} 63... Kb7
{[%clk 0:00:05.5]} 64. a5 {[%clk 0:00:18.1]} 64... Ra1 {[%clk 0:00:05.4]} 65.
Rxh2 {[%clk 0:00:12.6]} 65... Ra2+ {[%clk 0:00:05.3]} 66. Ke3 {[%clk 0:00:13.5]}
66... Rxh2 {[%clk 0:00:05.8]} 67. Kf4 {[%clk 0:00:14.4]} 67... f6 {[%clk
0:00:06.1]} 68. Kf5 {[%clk 0:00:14.4]} 68... Rf2+ {[%clk 0:00:06]} 0-1

[Event "*** Titled Tuesday Blitz"]
[Site "Chess.com"]
[Date "2020.04.21"]
[Round "4"]
[White "Sammed_Shete"]
[Black "Irishchessman16"]
[Result "0-1"]
[WhiteElo "2559"]
[BlackElo "2397"]
[TimeControl "180+1"]
[EndTime "10:41:18 PDT"]
[Termination "Irishchessman16 won by resignation"]

1. e4 {[%clk 0:03:00.9]} 1... c5 {[%clk 0:03:00.3]} 2. f4 {[%clk 0:02:59.5]}
2... d5 {[%clk 0:02:58.5]} 3. e5 {[%clk 0:02:59.4]} 3... Nc6 {[%clk 0:02:57.1]}
4. Nf3 {[%clk 0:02:59.1]} 4... Bg4 {[%clk 0:02:55.5]} 5. Bb5 {[%clk 0:02:57.7]}
5... e6 {[%clk 0:02:53.6]} 6. O-O {[%clk 0:02:55.1]} 6... h5 {[%clk 0:02:48.3]}
7. Bxc6+ {[%clk 0:02:53.6]} 7... bxc6 {[%clk 0:02:47.4]} 8. d3 {[%clk
0:02:53.9]} 8... Nh6 {[%clk 0:02:45.7]} 9. Nc3 {[%clk 0:02:53.2]} 9... Nf5
{[%clk 0:02:39.2]} 10. h3 {[%clk 0:02:52.9]} 10... Bxf3 {[%clk 0:02:38.7]} 11.
Qxf3 {[%clk 0:02:52.1]} 11... Be7 {[%clk 0:02:17.3]} 12. Nd1 {[%clk 0:02:40.8]}
12... Nd4 {[%clk 0:02:04]} 13. Qf2 {[%clk 0:02:40.4]} 13... Bh4 {[%clk
0:02:03.3]} 14. g3 {[%clk 0:02:38.5]} 14... Be7 {[%clk 0:01:58]} 15. h4 {[%clk
0:02:35.5]} 15... Qb6 {[%clk 0:01:51.1]} 16. Ne3 {[%clk 0:02:30.7]} 16... c4
{[%clk 0:01:42.1]} 17. dxc4 {[%clk 0:02:28.9]} 17... Bc5 {[%clk 0:01:42.2]} 18.
a4 {[%clk 0:02:16.4]} 18... Nxc2 {[%clk 0:01:28.8]} 19. Nxc2 {[%clk 0:01:48.4]}
19... Bxf2+ {[%clk 0:01:28.4]} 20. Rxf2 {[%clk 0:01:49.3]} 20... a5 {[%clk
0:01:15.5]} 21. Ra3 {[%clk 0:01:45.7]} 21... O-O {[%clk 0:01:09.6]} 22. Rc3
{[%clk 0:01:42.5]} 22... d4 {[%clk 0:01:05.4]} 23. Rd3 {[%clk 0:01:40.7]} 23...
c5 {[%clk 0:01:04.9]} 24. b3 {[%clk 0:01:35.5]} 24... Qc6 {[%clk 0:01:03.3]} 25.
Re2 {[%clk 0:01:33.1]} 25... f6 {[%clk 0:00:57.6]} 26. Na3 {[%clk 0:01:31.3]}
26... fxe5 {[%clk 0:00:54.4]} 27. Rxe5 {[%clk 0:01:30.8]} 27... Rf5 {[%clk
0:00:50.2]} 28. Re1 {[%clk 0:01:20.5]} 28... Re8 {[%clk 0:00:43]} 29. Nb5 {[%clk
0:01:10.5]} 29... e5 {[%clk 0:00:42.4]} 30. Rdd1 {[%clk 0:01:02.6]} 30... e4
{[%clk 0:00:31.8]} 31. Bb2 {[%clk 0:00:53.6]} 31... Rf6 {[%clk 0:00:29.1]} 32.
Kh2 {[%clk 0:00:48]} 32... Rg6 {[%clk 0:00:28.1]} 33. Nxd4 {[%clk 0:00:39.1]}
33... cxd4 {[%clk 0:00:27.6]} 34. Bxd4 {[%clk 0:00:40]} 34... e3 {[%clk
0:00:26.1]} 35. f5 {[%clk 0:00:33.1]} 35... Rg4 {[%clk 0:00:23.8]} 36. Rxe3
{[%clk 0:00:17.7]} 36... Rxe3 {[%clk 0:00:22.8]} 37. Bxe3 {[%clk 0:00:18.6]}
37... Qf3 {[%clk 0:00:22.7]} 38. Rd8+ {[%clk 0:00:17.8]} 38... Kh7 {[%clk
0:00:22.9]} 39. Bf4 {[%clk 0:00:16.1]} 39... Qf2+ {[%clk 0:00:16.9]} 40. Kh3
{[%clk 0:00:15.3]} 40... Qf1+ {[%clk 0:00:16.7]} 41. Kh2 {[%clk 0:00:15.2]}
41... Rxf4 {[%clk 0:00:12.8]} 42. gxf4 {[%clk 0:00:16.1]} 42... Qxf4+ {[%clk
0:00:13]} 43. Kg2 {[%clk 0:00:17]} 43... Qg4+ {[%clk 0:00:13.1]} 44. Kf1 {[%clk
0:00:17.4]} 44... Qxf5+ {[%clk 0:00:13.3]} 45. Ke2 {[%clk 0:00:16.8]} 45... Qe4+
{[%clk 0:00:12.8]} 46. Kd2 {[%clk 0:00:15.2]} 46... Qxh4 {[%clk 0:00:12.8]} 47.
Rd3 {[%clk 0:00:14.3]} 47... Qf2+ {[%clk 0:00:12.4]} 48. Kc3 {[%clk 0:00:12.8]}
48... h4 {[%clk 0:00:12.8]} 49. b4 {[%clk 0:00:12.2]} 49... Qf6+ {[%clk
0:00:11.5]} 50. Kb3 {[%clk 0:00:11.8]} 50... Qf1 {[%clk 0:00:10.8]} 51. Rd2
{[%clk 0:00:07.8]} 51... Qb1+ {[%clk 0:00:10.7]} 52. Rb2 {[%clk 0:00:07.7]}
52... Qd3+ {[%clk 0:00:11.1]} 53. Ka2 {[%clk 0:00:08.2]} 53... Qxc4+ {[%clk
0:00:11.5]} 54. Ka3 {[%clk 0:00:08.8]} 54... axb4+ {[%clk 0:00:11.4]} 55. Rxb4
{[%clk 0:00:09]} 55... Qc1+ {[%clk 0:00:11.9]} 56. Rb2 {[%clk 0:00:08.5]} 56...
g5 {[%clk 0:00:11.8]} 57. a5 {[%clk 0:00:09]} 57... h3 {[%clk 0:00:12]} 58. a6
{[%clk 0:00:09.2]} 58... h2 {[%clk 0:00:11.2]} 59. a7 {[%clk 0:00:08.4]} 59...
Qc5+ {[%clk 0:00:11.3]} 60. Kb3 {[%clk 0:00:06]} 60... Qxa7 {[%clk 0:00:11.3]}
61. Rxh2+ {[%clk 0:00:05.8]} 61... Kg6 {[%clk 0:00:11.9]} 62. Ra2 {[%clk
0:00:06]} 62... Qb7+ {[%clk 0:00:12]} 63. Kc4 {[%clk 0:00:06.1]} 63... Qf7+
{[%clk 0:00:11.6]} 64. Kd4 {[%clk 0:00:06.2]} 64... Qxa2 {[%clk 0:00:12.5]} 65.
Ke5 {[%clk 0:00:07.1]} 65... g4 {[%clk 0:00:12.5]} 66. Kd6 {[%clk 0:00:08]} 0-1